Cogmind - Beta 14 @@@ ROGUE MODE // 2025.04.01 @ 23:23:35 Player: Noggity Result: Destroyed by X-72 Disruptor with Improved Arc Projector Performance ------------- Evolutions (6) 3000 Regions Visited (8) 1600 Robots Destroyed (53) 265 Value Destroyed (1753) 1753 Prototype IDs (5) 100 Alien Tech Used (0) 0 Bonus (517) 517 TOTAL SCORE: 7235 Bonus ------- High Alert Combat Kills 17 Entered DSFs 500 Cogmind --------- Core Integrity 0/1150 Matter 52/300 Energy 98/100 System Corruption 13% Temperature Cool (0) Movement Core (50) Location -4/Factory Parts ------- > --- POWER (2) -------- (None) > --- PROPULSION (4) --- (None) > --- UTILITY (9) ------ (None) > --- WEAPON (4) ------- (None) > --- INVENTORY (5) ---- Micro Fission Core Improved Cooling System Improved Coolant Injector Peak State ------------ > --- POWER ------------ Reinforced Deuterium Engine Light Antimatter Reactor > --- PROPULSION ------- Flexi-carbon Leg Flexi-carbon Leg Armored Leg Myomer Leg > --- UTILITY ---------- Advanced Heat Sink Large Storage Unit Seismic Detector Improved Targeting Computer Matter Filter Weapon Cycler Improved Weapon Cycler Graphene Brace High-powered Tractor Beam > --- WEAPON ----------- Improved Assault Rifle Enhanced Autogun Enhanced Autogun Railgun > --- INVENTORY -------- Light Nuclear Core Micro Fission Core Carbon-fiber Leg Carbon-fiber Leg Titanium Leg Improved Carbon-fiber Leg Improved Carbon-fiber Leg Improved Carbon-fiber Leg Improved Cooling System Improved Coolant Injector Kinecellerator Magnetic Acceleration Cannon Long-range Missile Launcher Precision Rocket Launcher [Rating: 90] Favorites ----------- Power Reinforced Deuterium Engine Engine Reinforced Deuterium Engine Power Core Light Fission Core Reactor Light Antimatter Reactor Propulsion Carbon-fiber Leg Treads Light Treads Leg Carbon-fiber Leg Wheel Wheel Utility Large Storage Unit Device Shield Generator Storage Large Storage Unit Processor Improved Targeting Computer Hackware Hacking Suite Protection Improved Medium Armor Plating Weapon Heavy Assault Rifle Energy Gun Medium Laser Energy Cannon Advanced Beam Cannon Ballistic Gun Heavy Assault Rifle Ballistic Cannon Magnetic Acceleration Cannon Launcher Grenade Launcher Build | -11 -10 -9 -8 -7 -7 -6 -5 -4 ------- Run | Yrd Mat Mat Mat Fac DSF Fac Fac Fac Slots Evolved 12 | . . 2 2 2 . 2 2 2 Power 1 | . . . . . . . . 1 Propulsion 2 | . . . 1 . . 1 . . Utility 7 | . . . 1 2 . 1 2 1 Weapon 2 | . . 2 . . . . . . Parts Attached 114 | 7 5 15 9 4 12 12 14 36 Power 11 | 1 2 1 . . 2 . 1 4 Engine 8 | 1 2 1 . . 2 . . 2 Core 2 | . . . . . . . 1 1 Reactor 1 | . . . . . . . . 1 Propulsion 36 | 2 . 4 5 1 7 3 1 13 Treads 2 | . . 1 1 . . . . . Leg 31 | 2 . . 4 1 7 3 1 13 Wheel 3 | . . 3 . . . . . . Hover . | . . . . . . . . . Flight . | . . . . . . . . . Utility 32 | 2 1 1 1 2 . 4 11 10 Device 24 | 1 1 . . 1 . 4 8 9 Storage 5 | 1 . 1 . 1 . . 2 . Processor 1 | . . . 1 . . . . . Hackware 1 | . . . . . . . 1 . Protection 1 | . . . . . . . . 1 Artifact . | . . . . . . . . . Weapon 35 | 2 2 9 3 1 3 5 1 9 Energy Gun 1 | 1 . . . . . . . . Energy Cannon 1 | . . 1 . . . . . . Ballistic Gun 23 | 1 2 6 2 1 2 4 1 4 Ballistic Cannon 1 | . . . . . . . . 1 Launcher 9 | . . 2 1 . 1 1 . 4 Special Weapon . | . . . . . . . . . Impact Weapon . | . . . . . . . . . Slashing Weapon . | . . . . . . . . . Piercing Weapon . | . . . . . . . . . Special Melee Weapon . | . . . . . . . . . Unidentified Prototypes 5 | . 1 2 . 1 . 1 . . Parts Lost 36 | . . . . . 1 1 . 34 Power 6 | . . . . . 1 . . 5 Propulsion 10 | . . . . . . . . 10 Utility 11 | . . . . . . . . 11 Weapon 9 | . . . . . . 1 . 8 Highest Loss Streak 28 | . . . . . 1 1 . 28 To Critical Strikes . | . . . . . . . . . Average Slot Usage (%) 98 | . 99 99 99 99 100 100 100 92 Engine 7 | . 13 11 9 7 7 6 1 4 Treads 1 | . . 6 3 . . . . . Leg 18 | . 28 2 14 23 23 26 23 20 Wheel 3 | . . 12 8 . . . . . Device 20 | . 14 11 9 15 15 25 34 29 Storage 9 | . 14 11 9 14 15 6 5 4 Processor 4 | . . . 9 7 7 6 5 4 Ballistic Gun 28 | . 24 41 35 30 27 25 23 19 Peak Build Rating 90 | 9 12 18 24 30 39 49 64 90 Average Rating 38 | 5 10 15 21 27 36 46 57 79 On Entrance 26 | . 9 11 18 22 30 39 47 64 Naked Turns 8 | . . . . . . . . 8 Heaviest Build 74 | 13 16 40 40 41 51 54 69 74 Greatest Support 81 | 20 20 22 44 44 50 65 64 81 Greatest Overweight (x) 3 | 2 . 3 2 . 1 . 1 . Average Overweight (x) . | . . 2 . . . . . . Largest Inventory Capacity 20 | 8 8 15 15 15 15 15 20 15 Average Capacity 14 | 7 8 14 15 15 15 15 15 14 Most Carried 15 | 8 8 15 15 15 15 15 15 15 Average Carried 12 | 4 7 11 12 14 14 14 13 13 Final Capacity 15 | 8 8 15 15 15 15 15 15 5 Final Carried 15 | 6 8 15 13 15 15 14 15 3 Class Distribution -------------------- 35% | Tank 26% | Gunner 24% | Scavenger-Gunner 12% | Mutant Dominant Class ---------------- Mutant | -10/Materials Tank | -9/Materials Gunner | -8/Materials Tank | -7/Factory Tank | -7/DSF Gunner | -6/Factory Gunner | -5/Factory Scavenger-Gunner | -4/Factory Resources | -11 -10 -9 -8 -7 -7 -6 -5 -4 ----------- Run | Yrd Mat Mat Mat Fac DSF Fac Fac Fac Matter Collected 1989 | 303 68 415 50 . 456 237 5 455 Remotely 365 | . . . . . . . . 365 Salvage Created 1768 | 110 48 463 31 . 424 146 79 467 Parts 112 | 5 2 42 2 . 25 6 5 25 Haulers Intercepted 2 | . . 1 . . . . . 1 Recyclers Shooed 6 | 1 . . 2 . . . 1 2 Parts Field Recycled . | . . . . . . . . . Retrieved Matter . | . . . . . . . . . Parts Self-Destructed . | . . . . . . . . . Prevented . | . . . . . . . . . Kills | -11 -10 -9 -8 -7 -7 -6 -5 -4 ------- Run | Yrd Mat Mat Mat Fac DSF Fac Fac Fac Combat Hostiles Destroyed 42 | . 1 16 2 . 9 4 1 9 Guns 26 | . 1 7 2 . 7 4 1 4 AOE 16 | . . 9 . . 2 . . 5 Classes Destroyed 15 | 2 1 5 . . 4 . . 3 Worker 2 | . . 2 . . . . . . Builder 1 | . . . . . . . . 1 Tunneler 2 | 2 . . . . . . . . Hauler 2 | . . 1 . . . . . 1 Recycler 2 | 1 . 1 . . . . . . Watcher 2 | . . 2 . . . . . . Swarmer 16 | . . 11 2 . . 3 . . Cutter 2 | . . . . . 2 . . . Grunt 10 | . 1 2 . . 3 . . 4 Duelist 1 | . . . . . 1 . . . Sentry 5 | . . 3 . . . 1 1 . Specialist 2 | . . . . . 2 . . . Hunter 1 | . . . . . . . . 1 Programmer 4 | . . . . . . . . 4 Heavy 1 | . . . . . 1 . . . Best Kill Streak 8 | 3 1 8 2 . 4 3 1 6 Combat Bots Only 8 | . 1 8 2 . 4 3 1 5 Max Kills in Single Turn 5 | 1 1 5 1 . 2 2 1 2 Gunslinging . | . . . . . . . . . Exploded 4 | . . 4 . . 2 . . 2 Melee . | . . . . . . . . . Uniques/NPCs Destroyed . | . . . . . . . . . Combat | -11 -10 -9 -8 -7 -7 -6 -5 -4 -------- Run | Yrd Mat Mat Mat Fac DSF Fac Fac Fac Hostile Shots Fired 632 | . 4 44 7 . 37 24 2 514 Missed 288 | . . 16 2 . 17 16 2 235 Damage Taken 5748 | . 31 217 29 . 403 68 28 4972 Core 1229 | . 8 37 11 . 23 . . 1150 Absorbed by Shields 353 | . 12 87 11 . 133 28 11 71 Regen/Repaired (Parts) 45 | . . 45 . . . . . . Core Remaining (%) 97 | 100 96 90 98 . 96 100 100 . Volleys Fired 94 | 11 3 21 4 . 18 5 4 28 Largest 4 | 2 2 4 3 . 4 4 4 4 Hottest 126 | 70 46 99 69 . 105 98 96 126 Shots Fired 310 | 22 6 81 8 . 68 20 16 89 Gun 291 | 22 6 76 8 . 65 20 16 78 Cannon 2 | . . . . . . . . 2 Launcher 17 | . . 5 . . 3 . . 9 Special . | . . . . . . . . . Kinetic 282 | 11 6 76 8 . 65 20 16 80 Thermal 11 | 11 . . . . . . . . Explosive 17 | . . 5 . . 3 . . 9 Electromagnetic . | . . . . . . . . . Robot Hit Streak 14 | 2 5 8 3 . 12 5 6 14 Robot Miss Streak 6 | 1 1 6 1 . 4 2 2 5 Penetration Max 1 | . . . . . . . . 1 Secondary Targets 2 | . . . . . 1 . . 1 Max Gunslinging Chain 1 | . . . . . 1 . . 1 Shots Hit Robots 169 | 12 5 39 4 . 40 12 8 49 Core Hits 106 | 4 2 29 2 . 28 8 1 32 Critical Kills 1 | . . . . . . . 1 . Critical Parts Destroyed . | . . . . . . . . . Critical Strikes 3 | 2 . . . . . . 1 . Burn 2 | 2 . . . . . . . . Destroy 1 | . . . . . . . 1 . Melee Attacks . | . . . . . . . . . Impact . | . . . . . . . . . Slashing . | . . . . . . . . . Piercing . | . . . . . . . . . Sneak Attacks . | . . . . . . . . . Combat Hostiles . | . . . . . . . . . Follow-up Attacks . | . . . . . . . . . Damage Inflicted 6007 | 143 76 1117 56 . 1113 214 136 3152 Guns 2991 | 143 76 631 56 . 699 214 136 1036 Cannons 54 | . . . . . . . . 54 Explosions 2908 | . . 486 . . 414 . . 2008 Melee . | . . . . . . . . . Ramming 54 | . . . . . . . . 54 Kinetic 2959 | 57 76 631 56 . 699 214 136 1090 Thermal 692 | 86 . 77 . . . . . 529 Explosive 2302 | . . 409 . . 414 . . 1479 Electromagnetic . | . . . . . . . . . Impact . | . . . . . . . . . Slashing . | . . . . . . . . . Piercing . | . . . . . . . . . Highest Corruption 12 | . . . . . . . 2 12 Average Corruption 2 | . . . . . . . 2 2 Corruption Purged . | . . . . . . . . . Corruption Blocked . | . . . . . . . . . Effects 12 | . . . . . . . 1 11 Message Errors 2 | . . . . . . . . 2 Matter Fused 3 | . . . . . . . . 3 Heat Flow Errors 2 | . . . . . . . . 2 Energy Discharges 1 | . . . . . . . . 1 Parts Fused 1 | . . . . . . . 1 . Data Loss (major) 1 | . . . . . . . . 1 Misfires 1 | . . . . . . . . 1 Weapon Failures 1 | . . . . . . . . 1 Overload Shots . | . . . . . . . . . Overflow Damage 61 | . . . . . . . . 61 Projectiles . | . . . . . . . . . Explosions 61 | . . . . . . . . 61 Melee . | . . . . . . . . . Knockbacks 1 | . . . . . . . . 1 Impact . | . . . . . . . . . Kinetic 1 | . . . . . . . . 1 Secondary . | . . . . . . . . . Self-Inflicted Damage 192 | . . . . . 87 . . 105 Shots 5 | . . . . . 3 . . 2 Rammed . | . . . . . . . . . Targets Rammed 6 | . . . . . . . . 6 Kicked 6 | . . . . . . . . 6 Crushed . | . . . . . . . . . Highest Temperature 392 | 54 . 97 . . 146 132 72 392 Average Temperature 69 | 21 . 29 . . 76 61 32 127 Received Heat Transfer 449 | . 16 52 . . 90 . . 291 Siege Activations . | . . . . . . . . . Robots Corrupted . | . . . . . . . . . Combat Hostiles . | . . . . . . . . . Parts Fried . | . . . . . . . . . Impact Corruptions . | . . . . . . . . . Robots Melted . | . . . . . . . . . Combat Hostiles . | . . . . . . . . . Parts Melted 2 | 2 . . . . . . . . Heat Transferred 733 | 407 . 100 . . . . . 226 Parts Sabotaged . | . . . . . . . . . Parts Stolen . | . . . . . . . . . Parts Stripped . | . . . . . . . . . Power Chain Reactions . | . . . . . . . . . Alert | -11 -10 -9 -8 -7 -7 -6 -5 -4 ------- Run | Yrd Mat Mat Mat Fac DSF Fac Fac Fac Peak Influence 531 | 15 59 531 279 126 319 236 66 270 Initial 224 | . 9 24 224 126 88 167 46 32 Average 177 | 5 35 372 265 126 209 162 47 100 Maximum Alert Level 2 | . . 2 1 . 1 1 . 1 Low Security (%) 63 | 100 100 8 . 100 58 76 100 89 Level 1 24 | . . 38 100 . 41 23 . 10 Level 2 11 | . . 53 . . . . . . Level 3 . | . . . . . . . . . Level 4 . | . . . . . . . . . Level 5 . | . . . . . . . . . High Security . | . . . . . . . . . Max Security . | . . . . . . . . . Sterilizations 1 | . . . . . 1 . . . Squads Dispatched 9 | . 1 2 . . 2 1 . 3 Investigation 2 | . . 1 . . . 1 . . Extermination 1 | . . . . . . . . 1 Reinforcement 6 | . 1 1 . . 2 . . 2 Assault . | . . . . . . . . . Garrison . | . . . . . . . . . Intercept . | . . . . . . . . . Searches Triggered . | . . . . . . . . . Construction Impeded . | . . . . . . . . . Haulers Reinforced 1 | . . . . . . . . 1 Active Scanning Responses . | . . . . . . . . . Cargo Convoy Interrupts 1 | . . . . . . . . 1 Stealth | -11 -10 -9 -8 -7 -7 -6 -5 -4 --------- Run | Yrd Mat Mat Mat Fac DSF Fac Fac Fac Distress Signals 4 | . . 2 . . . . . 2 Communications Jammed . | . . . . . . . . . Distress Signals . | . . . . . . . . . Times Spotted 98 | . 1 31 3 . 12 7 2 42 Peak Tracking Total 14 | . 1 7 3 . 6 3 2 14 Tactical Retreats 5 | . . 1 . . 2 . . 2 Traps | -11 -10 -9 -8 -7 -7 -6 -5 -4 ------- Run | Yrd Mat Mat Mat Fac DSF Fac Fac Fac Traps Triggered 5 | . . . . . 3 . 1 1 Indirectly . | . . . . . . . . . Trap Hack Attempts . | . . . . . . . . . Triggered . | . . . . . . . . . Disarmed . | . . . . . . . . . Reprogrammed . | . . . . . . . . . Reused . | . . . . . . . . . Traps Extracted . | . . . . . . . . . Installed . | . . . . . . . . . Triggered . | . . . . . . . . . Machines | -11 -10 -9 -8 -7 -7 -6 -5 -4 ---------- Run | Yrd Mat Mat Mat Fac DSF Fac Fac Fac Machines Disabled 7 | . . 2 . . . . . 5 Max in Single Turn 2 | . . 2 . . . . . 2 Machines Repaired . | . . . . . . . . . Machines Dismantled . | . . . . . . . . . Machines Sabotaged . | . . . . . . . . . Overloaded Fab Kills . | . . . . . . . . . Hacking | -11 -10 -9 -8 -7 -7 -6 -5 -4 --------- Run | Yrd Mat Mat Mat Fac DSF Fac Fac Fac Machines Accessed 22 | . 4 6 2 2 . 3 3 2 Terminals 14 | . 3 4 2 2 . 1 1 1 Fabricators . | . . . . . . . . . Repair Stations 2 | . . 1 . . . 1 . . Recycling Units 3 | . 1 . . . . . 1 1 Scanalyzers 2 | . . 1 . . . 1 . . Garrison Access 1 | . . . . . . . 1 . Total Hacks 54 | . 8 21 5 4 . 7 4 5 Successful 26 | . 3 11 3 2 . 3 . 4 Failed 28 | . 5 10 2 2 . 4 4 1 Catastrophic 4 | . . 1 . . . . 3 . Database Lockouts . | . . . . . . . . . Manual 22 | . 7 8 2 3 . . . 2 Terminals 34 | . 7 13 5 4 . 1 1 3 Fabricators . | . . . . . . . . . Repair Stations 7 | . . 5 . . . 2 . . Recycling Units 5 | . 1 . . . . . 2 2 Scanalyzers 7 | . . 3 . . . 4 . . Garrison Access 1 | . . . . . . . 1 . Terminal Hacks 7 | . 1 1 2 1 . . . 2 Record 3 | . 1 . . . . . . 2 Open DSF 1 | . . . . 1 . . . . Branch Access Points 1 | . . . 1 . . . . . Locate Traps 1 | . . . 1 . . . . . Zone Layout 1 | . . 1 . . . . . . Fabricator Hacks . | . . . . . . . . . Repair Station Hacks 5 | . . 4 . . . 1 . . Scan Component 4 | . . 3 . . . 1 . . Repair 1 | . . 1 . . . . . . Recycling Unit Hacks 3 | . 1 . . . . . . 2 Retrieve Matter 1 | . . . . . . . . 1 Retrieve Components 2 | . 1 . . . . . . 1 Scanalyzer 4 | . . 2 . . . 2 . . Insert Component 2 | . . 1 . . . 1 . . Analyze 2 | . . 1 . . . 1 . . Garrison Access Hacks . | . . . . . . . . . Unauthorized Hacks 7 | . 1 4 1 1 . . . . Terminals 7 | . 1 4 1 1 . . . . Botnet 7 | . 1 4 1 1 . . . . Fabricators . | . . . . . . . . . Repair Stations . | . . . . . . . . . Recycling Units . | . . . . . . . . . Scanalyzers . | . . . . . . . . . Garrison Access . | . . . . . . . . . Data Cores Recovered . | . . . . . . . . . Used . | . . . . . . . . . Hacking Detections 20 | . 4 5 1 2 . 3 3 2 Full Trace Events 2 | . . 1 . . . 1 . . Feedback Events . | . . . . . . . . . Feedback Blocked . | . . . . . . . . . Robot Schematics Acquired . | . . . . . . . . . Robots Built . | . . . . . . . . . Authchips . | . . . . . . . . . Time . | . . . . . . . . . Total Robot Build Rating . | . . . . . . . . . Part Schematics Acquired 1 | . . 1 . . . . . . Parts Built . | . . . . . . . . . Authchips . | . . . . . . . . . Time . | . . . . . . . . . Total Part Build Rating . | . . . . . . . . . Parts Repaired 1 | . . 1 . . . . . . Time 32 | . . 32 . . . . . . Parts Recycled . | . . . . . . . . . Recycled Matter . | . . . . . . . . . Retrieved Matter . | . . . . . . . . . Retrieved Components 2 | . 1 . . . . . . 1 Parts Scanalyzed 2 | . . 1 . . . 1 . . Part Schematics Acquired 1 | . . 1 . . . . . . Parts Damaged . | . . . . . . . . . Bothacking | -11 -10 -9 -8 -7 -7 -6 -5 -4 ------------ Run | Yrd Mat Mat Mat Fac DSF Fac Fac Fac Used RIF Installer . | . . . . . . . . . Robots Hacked . | . . . . . . . . . Non-combat . | . . . . . . . . . Combat . | . . . . . . . . . Robot Hacks Applied . | . . . . . . . . . Relay Couplers Released . | . . . . . . . . . Fabnet Peak Effective % . | . . . . . . . . . Robots Rewired . | . . . . . . . . . Allies Hacked . | . . . . . . . . . Hacks Repelled . | . . . . . . . . . Allies | -11 -10 -9 -8 -7 -7 -6 -5 -4 -------- Run | Yrd Mat Mat Mat Fac DSF Fac Fac Fac Total Allies . | . . . . . . . . . Largest Group . | . . . . . . . . . Highest-Rated Group . | . . . . . . . . . Highest-Rated Ally . | . . . . . . . . . Total Orders 11 | . . . . . . . 6 5 ROAM 3 | . . . . . . . 1 2 FOLLOW 4 | . . . . . . . 2 2 EXPLORE 2 | . . . . . . . 2 . RETURN 2 | . . . . . . . 1 1 Ally Attacks . | . . . . . . . . . Total Damage . | . . . . . . . . . Kills . | . . . . . . . . . Allies Corrupted . | . . . . . . . . . Allies Melted . | . . . . . . . . . Intel | -11 -10 -9 -8 -7 -7 -6 -5 -4 ------- Run | Yrd Mat Mat Mat Fac DSF Fac Fac Fac Robot Analysis Total . | . . . . . . . . . Derelict Logs Recovered . | . . . . . . . . . Drone Launches 5 | . . . . . . . 3 2 Drone Recoveries 4 | . . . . . . . 2 2 Exploration | -11 -10 -9 -8 -7 -7 -6 -5 -4 ------------- Run | Yrd Mat Mat Mat Fac DSF Fac Fac Fac Turns Passed 3380 | 140 288 744 266 206 241 542 336 617 Spaces Moved 2259 | 74 214 502 201 154 94 396 231 393 Core 33 | 16 . . . . . . . 17 Treads . | . . . . . . . . . Legs 1639 | 58 214 11 105 154 94 396 231 376 Wheels 587 | . . 491 96 . . . . . Hover . | . . . . . . . . . Flight . | . . . . . . . . . Fastest Speed 50 | 50 120 100 100 126 123 122 120 50 Average Speed 122 | 121 120 118 114 126 172 124 120 116 Slowest Speed 270 | 150 120 190 270 126 193 125 190 120 Overloaded Moves . | . . . . . . . . . Propulsion Burnouts . | . . . . . . . . . Robots Hopped . | . . . . . . . . . Cave-ins Triggered . | . . . . . . . . . Exploration Rate (%) 23 | 4 34 37 18 3 82 10 9 14 Regions Visited 8 Branch Regions . Pre-discovered Areas . | . . . . . . . . . Known Exits Taken 1 | . . . . 1 . . . . Unknown Exits Taken 6 | 1 1 1 1 . . 1 1 . Scrap Searched . | . . . . . . . . . Spaces Dug . | . . . . . . . . . Terrain Destroyed 168 | . . 55 . . 6 . . 107 Melee . | . . . . . . . . . Projectile 6 | . . . . . . . . 6 AOE 162 | . . 55 . . 6 . . 101 Terrain Rammed . | . . . . . . . . . Walls Destroyed . | . . . . . . . . . Machines Disabled . | . . . . . . . . . Actions | -11 -10 -9 -8 -7 -7 -6 -5 -4 --------- Run | Yrd Mat Mat Mat Fac DSF Fac Fac Fac Total 2719 | 99 242 596 233 167 143 443 279 517 Wait 121 | . . 45 . . 1 7 23 45 Move 2250 | 73 213 501 200 153 93 394 230 393 Hop . | . . . . . . . . . Pick Up 64 | 8 9 8 8 6 4 11 4 6 Fast Attach 21 | 5 4 3 2 1 . 3 1 2 Attach 34 | 2 . 3 2 2 1 3 2 19 Detach 8 | . 1 2 2 1 . 1 1 . Swap 59 | . 1 9 5 1 11 6 11 15 Drop 51 | . 11 4 10 3 5 12 3 3 Fire 94 | 11 3 21 4 . 18 5 4 28 Melee . | . . . . . . . . . Ram . | . . . . . . . . . Kick 6 | . . . . . . . . 6 Crush . | . . . . . . . . . Escape Stasis 11 | . . . . . 10 1 . . Rewire . | . . . . . . . . . Trap . | . . . . . . . . . Miscellaneous . | . . . . . . . . . Route ------- -11/Scrapyard -10/Materials (discovered 2 exits: *Mat / [*Min]) -9/Materials -8/Materials -7/Factory -7/DSF -6/Factory -5/Factory -4/Factory History --------- Turn | Location | Event 26 | -11/Scrapyard | Discovered new exit (range 14) 141 | -11/Scrapyard | Entered Materials 207 | -10/Materials | Discovered new exit (range 9) 314 | -10/Materials | Build established: Mutant 400 | -10/Materials | Discovered new exit (range 11) 429 | -10/Materials | Entered another Materials area 429 | -9/Materials | Evolved 2 slots: Weapon x2 514 | -9/Materials | Destroyed 8 combat bots 729 | -9/Materials | Build established: Tank 878 | -9/Materials | Repaired Hvy. Assault Rifle 930 | -9/Materials | Discovered new exit (range 15) 1173 | -9/Materials | Entered another Materials area 1173 | -8/Materials | Evolved 2 slots: Propulsion x1, Utility x1 1324 | -8/Materials | Discovered new exit (range 15) 1439 | -8/Materials | Entered Factory 1439 | -7/Factory | Evolved 2 slots: Utility x2 1643 | -7/Factory | Identified exit to DSF 1645 | -7/Factory | Entered DSF 1691 | -7/DSF | Additional patrols routed to DSF 1817 | -7/DSF | Sterilization system engaged 1834 | -7/DSF | Discovered new exit (range 16) 1837 | -7/DSF | Ambient heat levels rising (+10) 1852 | -7/DSF | Ambient heat levels rising (+10) 1867 | -7/DSF | Ambient heat levels rising (+10) 1882 | -7/DSF | Ambient heat levels rising (+10) 1886 | -7/DSF | Entered Factory 1886 | -6/Factory | Evolved 2 slots: Propulsion x1, Utility x1 2183 | -6/Factory | Build established: Gunner 2412 | -6/Factory | Discovered new exit (range 13) 2428 | -6/Factory | Entered another Factory area 2428 | -5/Factory | Evolved 2 slots: Utility x2 2708 | -5/Factory | Discovered new exit (range 27) 2764 | -5/Factory | Entered another Factory area 2764 | -4/Factory | Evolved 2 slots: Power x1, Utility x1 3069 | -4/Factory | Build established: Scavenger-Gunner 3153 | -4/Factory | Lost 6 parts (2p3u1w) 3328 | -4/Factory | Cargo convoy interrupted 3367 | -4/Factory | System corruption reached 10% 3371 | -4/Factory | Core integrity fell below 50% 3373 | -4/Factory | Released all parts (3) 3377 | -4/Factory | Core integrity fell below 20% 3381 | -4/Factory | Destroyed by X-72 Disruptor with Improved Arc Projector Last Messages --------------- 03375_ Penetrated by Slug. 03375_ Slug penetrates Earth. 03375_ U-05 Engineer lays Concrete. 03376_ System corrupted: Heat flow error (+146). 03376_ R-10 Processor collects Prototype Slashing Weapon. 03376_ U-05 Engineer lays Concrete. 03377_ Penetrated by Slug. 03377_ Slug penetrates Wall. 03377_ U-05 Engineer lays Concrete. 03377_ Penetrated by Slug. 03378_ The unstable cave ceiling collapses. 03378_ Knocked back. 03378_ U-05 Engineer lays Concrete. 03378_ Slug penetrates X-72 Disruptor. 03378_ Slug penetrates H-77 Assassin. 03379_ U-05 Engineer lays Concrete. 03379_ Slug penetrates Wall. 03380_ Slug penetrates Manufacturing Mainframe. 03380_ U-05 Engineer lays Concrete. Map ----- +----------------------------------------------------+ | ?????????????????????????????????????????????????? | | ?????????????????????????????????????????????????? | | ?????????????????????????????????????????????????? | | ?????????????????????????????????????????????????? | | ?????????????????????????????????????????????????? | | ?????????????????????????????????????????????????? | | ?????????????????????????????????????????????????? | | ?????????????????????????????????????????????????? | | ?????????????????????????????????????????????????? | | ?????????????????????????????????????????????????? | | ?????????????????????????????????????????????????? | | ?????????????????????????????????????????????????? | | ?????????????????????????????????????????????????? | | ?????????????????????????????????????????????????? | | ?????????????????????????????????????????????????? | | ?????????????????????????????????????????????????? | | ?????????????????????????????????????????????????? | | ?????????????????????????????????????????????????? | | ?????????????????????????????????????????????????? | | ?????????????????????????????????????????????????? | | ????????????????????########?????????????????????? | | ????###?#####???????# i #?????????????????????? | | ????# ## # #??###??# """" #?????????????????????? | | ????# ## #### #### """" +?????????????????????? | | ????# # # "" " #?????????????????????? | | ?##### ="## "" @ #?????????????????????? | | ?# ## ###???????????????????? | | ??# # # ;;;###?????????????????? | | ? = # h "#?????????????????? | | ??# ! [h ;#?????????????????? | | ?# ! *%[u #????????????????? | | ??### % xh u ;#????????????????? | | ???# #% x%x ??????????????? | | ??# ## ] % ; "??????????????? | | ?????## # # ##+##; ""?????????????? | | ??????## Y h R # ""?????????????? | | ???????###" %! [ "??????????????? | | ????????# " = ""?????????????? | | ????????### != + ""?????????????? | | ??????????# = #??????????????????? | | #######???####"########## #??????????????????? | | # #????? ????????# ##########?????????? | | # #???? "???????# ????????? | | # " " #???" "???????# ???????? | | # " " #??R ""??????# ????????? | | # " " #?""" !! "???????# ????????? | | # " " ## ! ???????# ????????? | | # " " ################### """" !????????? | | # " " #???????# # """" ?????????? | | # " " #####???# """ """ # ! """" ??????????? | +----------------------------------------------------+ Best States ------------- Heat Dissipation 62 Energy Generation 32 Energy Capacity 360 Matter Stores 300 Matter Capacity 350 Sight Range 16 Terrain Scan Range 16 Terrain Scan Density 10 Armor Coverage 225 Weapon Cycling 30 Evasion (%) 63 Targeting Accuracy 6 Matter Filtering 30 Kinecelleration 30 Offensive Hacking 10 Item Schematics ----------------- Grenade Launcher | -9/Materials | Scanalyzed Robot Schematics ------------------ None Fabricated ------------ Nothing Alien Tech Used ----------------- None Achievements -------------- Hey, That's Mine! Challenges ------------ None Game ------ Seed SuperdenseAluminumBlaster Manual? 0 Play Time 01:15:15 Cumulative 25.1 hours Start 2025.04.01 @ 22:07:10 End 2025.04.01 @ 23:23:35 Sessions 1 Manual Loads 0 Difficulty Rogue Special Mode None Game No. 16 Rogue 16 Adventurer 0 Explorer 0 Win Type - Total 0 Types 0/0/0/0/0/0/0/0/0 Lore% 12 Gallery% 32 Achievement% 27 Wizard Run 0 Options --------- Layout 1 ASCII 0 Keyboard 1 Movement Numpad Keybinds 0 Fullscreen 1 Font 24/Smallcaps Map View 50x35 Zoom Use 0% Tactical HUD 1 Map Filters NONE Filters NONE Steam 1 RUN: 34694f30-79de-4f58-88a4-feab881e9c0d